Workbook

Sheet 面试人数成绩 (3)
A1: 庐阳区三十岗乡2021年村级后备干部选拔面试成绩及总成绩
A2: 序号 | B2: 身份证号 | C2: 户籍地 | D2: 民族 | E2: 政治面貌 | F2: 学历 | G2: 毕业院校 | H2: 专业 | I2: 报考岗位 | J2: 加分成绩 | K2: 笔试成绩 | L2: 合成成绩 | M2: 抽签号 | N2: 面试 | O2: 总成绩 | P2: 备注
A3: 1 | B3: 340111198601046039 | C3: 陈龙村 | D3: 汉族 | F3: 本科 | G3: 合肥工业大学 | H3: 机电一体化 | I3: 后备干部-21111701 | K3: 73 | L3: =K3+J3 -> 73 | M3: 01-01 | N3: 76.26 | O3: =L3*0.5+N3*0.5 -> 74.63
A4: 2 | B4: 340111199407186032 | C4: 瞿嘴村 | D4: 汉族 | E4: 党员 | F4: 大专 | G4: 安徽汽车技术职业学院 | H4: 汽车技术服务与营销 | I4: 后备干部-21111701 | J4: 1 | K4: 64 | L4: =K4+J4 -> 65 | M4: 01-02 | N4: 72.47 | O4: =L4*0.5+N4*0.5 -> 68.74
A5: 3 | B5: 340111199709206051 | C5: 瞿嘴村 | D5: 汉族 | F5: 本科 | G5: 淮北师范大学 | H5: 翻译 | I5: 后备干部-21111701 | K5: 63 | L5: =K5+J5 -> 63 | M5: 01-03 | N5: 76.07 | O5: =L5*0.5+N5*0.5 -> 69.54
A6: 4 | B6: 340111199701126030 | C6: 崔岗村 | D6: 汉族 | F6: 本科 | G6: 成都大学 | H6: 食品质量与安全 | I6: 后备干部-21111701 | K6: 64 | L6: =K6+J6 -> 64 | M6: 01-04 | N6: 73.63 | O6: =L6*0.5+N6*0.5 -> 68.82
A7: 5 | B7: 340111199603096034 | C7: 东瞿村 | D7: 汉族 | F7: 本科 | G7: 安庆师范大学 | H7: 旅游管理 | I7: 后备干部-21111701 | K7: 67 | L7: =K7+J7 -> 67 | M7: 01-05 | N7: 74.74 | O7: =L7*0.5+N7*0.5 -> 70.87
A8: 6 | B8: 340111199106136031 | C8: 三十岗 | D8: 汉族 | F8: 本科 | G8: 江西农业大学南昌商学院 | H8: 旅游与酒店管理 | I8: 后备干部-21111701 | K8: 66 | L8: =K8+J8 -> 66 | M8: 01-06 | N8: 75.19 | O8: =L8*0.5+N8*0.5 -> 70.60
A9: 7 | B9: 340111198911176031 | C9: 崔岗村 | D9: 汉族 | E9: 党员 | F9: 本科 | G9: 安徽农业大学 | H9: 社会工作 | I9: 后备干部-21111701 | J9: 2 | K9: 74 | L9: =K9+J9 -> 76 | M9: 01-07 | N9: 75.80 | O9: =L9*0.5+N9*0.5 -> 75.90
A10: 8 | B10: 340111199510086056 | C10: 风景村 | D10: 汉族 | F10: 本科 | G10: 池州学院 | H10: 文化产业管理 | I10: 后备干部-21111701 | K10: 68 | L10: =K10+J10 -> 68 | M10: 01-08 | N10: 74.61 | O10: =L10*0.5+N10*0.5 -> 71.31
A11: 9 | B11: 34011119890209603x | C11: 风景村 | D11: 汉族 | F11: 本科 | G11: 安徽农业大学 | H11: 英语 | I11: 后备干部-21111701 | K11: 74 | L11: =K11+J11 -> 74 | M11: 01-09 | N11: 75.10 | O11: =L11*0.5+N11*0.5 -> 74.55
A12: 10 | B12: 340111199305086057 | C12: 风景村 | D12: 汉族 | E12: 党员 | F12: 大专 | G12: 安徽经济管理干部学院 | H12: 物业管理 | I12: 后备干部-21111701 | J12: 2 | K12: 62 | L12: =K12+J12 -> 64 | M12: 01-10 | N12: 73.85 | O12: =L12*0.5+N12*0.5 -> 68.93
A13: 11 | B13: 340111199804026016 | C13: 崔岗村 | D13: 汉族 | F13: 本科 | G13: 肇庆学院 | H13: 美术学 | I13: 后备干部-21111701 | K13: 64 | L13: =K13+J13 -> 64 | M13: 01-11 | N13: 74.18 | O13: =L13*0.5+N13*0.5 -> 69.09
A14: 12 | B14: 340111199806076033 | C14: 柴冲村 | D14: 汉族 | F14: 本科 | G14: 铜陵学院 | H14: 广告学 | I14: 后备干部-21111701 | K14: 63 | L14: =K14+J14 -> 63 | M14: 01-12 | N14: 74.65 | O14: =L14*0.5+N14*0.5 -> 68.83
A15: 13 | B15: 340111199305236035 | C15: 崔岗村 | D15: 汉族 | E15: 党员 | F15: 大专 | G15: 安徽长江职业学院 | H15: 建筑设计 | I15: 后备干部-21111701 | J15: 1 | K15: 63 | L15: =K15+J15 -> 64 | M15: 01-13 | N15: 70.87 | O15: =L15*0.5+N15*0.5 -> 67.44
A16: 14 | B16: 340111199308116039 | C16: 三十岗 | D16: 汉族 | E16: 党员 | F16: 大专 | G16: 安徽交通职业技术学院 | H16: 建筑工程技术 | I16: 后备干部-21111701 | J16: 1 | K16: 64 | L16: =K16+J16 -> 65 | M16: 01-14 | N16: 73.90 | O16: =L16*0.5+N16*0.5 -> 69.45
A17: 15 | B17: 340111199302166078 | C17: 崔岗村 | D17: 汉族 | F17: 本科 | G17: 池州学院 | H17: 旅游管理 | I17: 后备干部-21111701 | K17: 66 | L17: =K17+J17 -> 66 | M17: 01-15 | N17: 74.30 | O17: =L17*0.5+N17*0.5 -> 70.15
A18: 16 | B18: 340111199506186011 | C18: 三十岗 | D18: 汉族 | F18: 本科 | G18: 北华大学 | H18: 预防医学 | I18: 后备干部-21111701 | K18: 67 | L18: =K18+J18 -> 67 | M18: 01-16 | N18: 74.88 | O18: =L18*0.5+N18*0.5 -> 70.94
A19: 17 | B19: 340111199810016041 | C19: 汪堰村 | D19: 汉族 | F19: 本科 | G19: 丽水学院 | H19: 电子商务 | I19: 后备干部-21111702 | K19: 69 | L19: =K19+J19 -> 69 | M19: 02-01 | N19: 76.26 | O19: =L19*0.5+N19*0.5 -> 72.63
A20: 18 | B20: 340111199304306062 | C20: 崔岗村 | D20: 汉族 | F20: 本科 | G20: 安庆师范大学 | H20: 统计学 | I20: 后备干部-21111702 | K20: 65 | L20: =K20+J20 -> 65 | M20: 02-02 | N20: 64.75 | O20: =L20*0.5+N20*0.5 -> 64.88
A21: 19 | B21: 340103199708295523 | C21: 堰稍村 | D21: 汉族 | F21: 本科 | G21: 安徽财经大学 | H21: 审计学 | I21: 后备干部-21111702 | K21: 71 | L21: =K21+J21 -> 71 | M21: 02-03 | N21: 77.21 | O21: =L21*0.5+N21*0.5 -> 74.11
A22: 20 | B22: 340111199807216042 | C22: 古城路 | D22: 汉族 | F22: 本科 | G22: 安徽农业大学经济技术学院 | H22: 财务管理 | I22: 后备干部-21111702 | K22: 85 | L22: =K22+J22 -> 85 | M22: 02-04 | N22: 79.43 | O22: =L22*0.5+N22*0.5 -> 82.22
A23: 21 | B23: 340111198712286123 | C23: 崔岗村 | D23: 汉族 | F23: 本科 | G23: 南京医科大学 | H23: 医学检验 | I23: 后备干部-21111702 | K23: 65 | L23: =K23+J23 -> 65 | M23: 02-05 | N23: 67.52 | O23: =L23*0.5+N23*0.5 -> 66.26
A24: 22 | B24: 340111199508116041 | C24: 汪堰村 | D24: 汉族 | E24: 党员 | F24: 本科 | G24: 安徽大学江淮学院 | H24: 会计学 | I24: 后备干部-21111702 | J24: 1 | K24: 68 | L24: =K24+J24 -> 69 | M24: 02-06 | N24: 76.81 | O24: =L24*0.5+N24*0.5 -> 72.91
A25: 23 | B25: 340111199311216049 | C25: 汪堰村 | D25: 汉族 | E25: 党员 | F25: 大专 | G25: 安徽汽车职业技术学院 | H25: 物流管理 | I25: 后备干部-21111702 | J25: 1 | K25: 68 | L25: =K25+J25 -> 69 | M25: 02-07 | N25: 72.40 | O25: =L25*0.5+N25*0.5 -> 70.70
A26: 24 | B26: 340111198810043045 | C26: 包河区 | D26: 汉族 | F26: 本科 | G26: 合肥学院 | H26: 计算机科学与技术 | I26: 后备干部-21111702 | K26: 65 | L26: =K26+J26 -> 65 | M26: 02-08 | N26: 71.18 | O26: =L26*0.5+N26*0.5 -> 68.09
A27: 25 | B27: 340111199512016027 | C27: 东瞿村 | D27: 汉族 | F27: 本科 | G27: 淮北师范大学 | H27: 汉语言文学 | I27: 后备干部-21111702 | K27: 73 | L27: =K27+J27 -> 73 | M27: 02-09 | N27: 74.85 | O27: =L27*0.5+N27*0.5 -> 73.93
A28: 26 | B28: 340111199708156048 | C28: 古城路 | D28: 汉族 | F28: 大专 | G28: 安徽电气工程职业技术学院 | H28: 发电厂及电力系统 | I28: 后备干部-21111702 | K28: 67 | L28: =K28+J28 -> 67 | M28: 02-10 | N28: 71.38 | O28: =L28*0.5+N28*0.5 -> 69.19
A29: 27 | B29: 342623199009135525 | C29: 无为市 | D29: 汉族 | E29: 党员 | F29: 本科 | G29: 安徽农业大学 | H29: 土地资源管理 | I29: 后备干部-21111702 | J29: 1 | K29: 65 | L29: =K29+J29 -> 66 | M29: 02-11 | N29: 72.63 | O29: =L29*0.5+N29*0.5 -> 69.32
A30: 28 | B30: 340111199707236046 | C30: 风景村 | D30: 汉族 | F30: 本科 | G30: 安徽三联学院 | H30: 市场营销 | I30: 后备干部-21111702 | K30: 67 | L30: =K30+J30 -> 67 | M30: 02-12 | N30: 73.60 | O30: =L30*0.5+N30*0.5 -> 70.30
A31: 29 | B31: 340111199110146048 | C31: 风景村 | D31: 汉族 | E31: 党员 | F31: 本科 | G31: 合肥师范学院 | H31: 数学与应用数学 | I31: 后备干部-21111702 | J31: 1 | K31: 72 | L31: =K31+J31 -> 73 | M31: 02-13 | N31: 71.95 | O31: =L31*0.5+N31*0.5 -> 72.48
A32: 30 | B32: 340111198902246042 | C32: 三十岗 | D32: 汉族 | E32: 党员 | F32: 硕士研究生 | G32: 中国矿业大学 | H32: 物流工程 | I32: 后备干部-21111702 | J32: 1 | K32: 72 | L32: =K32+J32 -> 73 | M32: 02-14 | N32: 73.93 | O32: =L32*0.5+N32*0.5 -> 73.47
A33: 31 | B33: 34082819930323252x | C33: 东瞿村 | D33: 汉族 | F33: 本科 | G33: 合肥学院 | H33: 物流管理 | I33: 后备干部-21111702 | K33: 71 | L33: =K33+J33 -> 71 | M33: 02-15 | N33: 70.76 | O33: =L33*0.5+N33*0.5 -> 70.88
A34: 32 | B34: 340111198309176039 | C34: 堰稍村 | D34: 汉族 | E34: 党员 | F34: 中专 | G34: 北京工商企业管理干部学校 | H34: 行政管理 | I34: 后备干部-21111703 | J34: 1 | K34: 50 | L34: =K34+J34 -> 51 | M34: 03-01 | N34: 70.97 | O34: =L34*0.5+N34*0.5 -> 60.99
A35: 33 | B35: 340111199510086072 | C35: 风景村 | D35: 汉族 | F35: 大专 | G35: 安徽粮食工程职业技术学院 | H35: 制冷与冷藏技术 | I35: 后备干部-21111703 | K35: 52 | L35: =K35+J35 -> 52 | M35: 03-02 | N35: 0.00 | O35: =L35*0.5+N35*0.5 -> 26.00 | P35: 弃考
A36: 34 | B36: 342622199007262399 | C36: 庐江县 | D36: 汉族 | E36: 党员 | F36: 大专 | G36: 淮南职业技术学院 | H36: 建筑工程技术 | I36: 后备干部-21111703 | J36: 2 | K36: 76 | L36: =K36+J36 -> 78 | M36: 03-03 | N36: 77.70 | O36: =L36*0.5+N36*0.5 -> 77.85
A37: 35 | B37: 340111199110016032 | C37: 三十岗 | D37: 汉族 | F37: 中专 | G37: 中科院合肥科学技术学校 | H37: 计算机 | I37: 后备干部-21111703 | K37: 56 | L37: =K37+J37 -> 56 | M37: 03-04 | N37: 74.48 | O37: =L37*0.5+N37*0.5 -> 65.24
A38: 36 | B38: 340111199902106036 | C38: 陈龙村 | D38: 汉族 | F38: 大专 | G38: 安徽工商职业学院 | H38: 会计 | I38: 后备干部-21111703 | K38: 59 | L38: =K38+J38 -> 59 | M38: 03-05 | N38: 72.88 | O38: =L38*0.5+N38*0.5 -> 65.94
A39: 37 | B39: 340111199809046016 | C39: 三十岗 | D39: 汉族 | F39: 大专 | G39: 安徽工业经济技术学院 | H39: 应用电子 | I39: 后备干部-21111703 | K39: 63 | L39: =K39+J39 -> 63 | M39: 03-06 | N39: 69.82 | O39: =L39*0.5+N39*0.5 -> 66.41
A40: 38 | B40: 340111198905236034 | C40: 三十岗 | D40: 汉族 | E40: 党员 | F40: 大专 | G40: 中国人民解放军南京政治学院 | H40: 无 | I40: 后备干部-21111703 | J40: 1 | K40: 50 | L40: =K40+J40 -> 51 | M40: 03-07 | N40: 74.91 | O40: =L40*0.5+N40*0.5 -> 62.96
A41: 39 | B41: 340111199112275513 | C41: 大杨镇 | D41: 汉族 | E41: 党员 | F41: 本科 | G41: 安徽建筑大学 | H41: 工程管理 | I41: 后备干部-21111703 | J41: 2 | K41: 52 | L41: =K41+J41 -> 54 | M41: 03-08 | N41: 74.68 | O41: =L41*0.5+N41*0.5 -> 64.34
A42: 40 | B42: 340111198505036033 | C42: 陈龙村 | D42: 汉族 | E42: 党员 | F42: 大专 | G42: 合肥通用职业技术学院 | H42: 数控技术应用 | I42: 后备干部-21111703 | J42: 1 | K42: 60 | L42: =K42+J42 -> 61 | M42: 03-09 | N42: 73.75 | O42: =L42*0.5+N42*0.5 -> 67.38
A43: 41 | B43: 340111198504206037 | C43: 瞿嘴村 | D43: 汉族 | E43: 党员 | F43: 高中 | G43: 合肥市二十二中学 | H43: 无 | I43: 后备干部-21111703 | J43: 1 | K43: 57 | L43: =K43+J43 -> 58 | M43: 03-10 | N43: 75.40 | O43: =L43*0.5+N43*0.5 -> 66.70
